bitfinex/quotes_ETHUSD_20240717
["timestamp","ask_amount","ask_price","bid_price","bid_amount"]
[1721255626306,15.57734406,3408.6,3408.5,0.18000001]
[1721255626702,15.57735394,3408.6,3408.5,0.18000001]
[1721255627008,15.57736378,3408.6,3408.5,0.18000001]
[1721255627213,15.57760376,3408.6,3408.5,0.18000001]
[1721255627384,13.74894551,3408.6,3408.5,0.18000001]
[1721255627588,16.68269551,3408.6,3408.5,0.18000001]
[1721255628496,14.76323147,3408.6,3408.5,0.18000001]
[1721255628705,16.68275972,3408.6,3408.5,0.18000001]
[1721255629530,18.51176797,3408.6,3408.5,0.18000001]
[1721255629707,16.68275972,3408.6,3408.5,0.18000001]
[1721255630092,18.51182971,3408.6,3408.5,0.18000001]
[1721255631602,18.51203445,3408.6,3408.5,0.18000001]
[1721255631937,14.76323147,3408.6,3408.5,0.18000001]
[1721255632541,16.68255327,3408.6,3408.5,0.18000001]
[1721255632893,18.51186795,3408.6,3408.5,0.18000001]
[1721255633207,16.68256107,3408.6,3408.5,0.18000001]
[1721255633427,18.51187575,3408.6,3408.5,0.18000001]
[1721255633623,18.51187575,3408.6,3408.5,0.16200001]
[1721255634695,14.76323147,3408.6,3408.5,0.16200001]
[1721255635006,16.68266068,3408.6,3408.5,0.16200001]
[1721255635208,18.51234491,3408.6,3408.5,0.16200001]
[1721255635395,16.68266068,3408.6,3408.5,0.16200001]
[1721255637875,14.76323147,3408.6,3408.5,0.16200001]
[1721255638018,16.6827258,3408.6,3408.5,0.16200001]
[1721255640544,18.51180641,3408.6,3408.5,0.16200001]
[1721255640748,18.51165379,3408.6,3408.5,0.16200001]
[1721255640919,18.51164086,3408.6,3408.5,0.16200001]
[1721255641126,2.93441,3407.9,3407.2,2.3242]
[1721255641359,0.60966469,3407.8,3407.3,0.525924]
[1721255642044,0.60966469,3407.9,3407.3,0.525924]
[1721255642249,3.84877703,3408.0,3407.3,0.525924]
[1721255642250,0.60966469,3407.8,3407.3,0.525924]
[1721255642559,0.60966469,3407.8,3407.5,2.4818]
[1721255642736,0.91449703,3408.0,3407.6,0.5942484]
[1721255642737,0.60966469,3408.0,3407.6,0.5942484]
[1721255643757,0.60966469,3407.9,3407.6,0.5942484]
[1721255643963,0.60966469,3407.9,3407.5,2.4818]
[1721255644168,0.60966469,3408.0,3407.5,5.41649]
[1721255644537,0.60966469,3408.1,3407.5,5.41649]
[1721255644931,8.22449703,3408.2,3407.9,2.93433]
[1721255644932,7.31,3408.2,3407.9,2.93433]
[1721255645238,0.60966469,3408.3,3408.0,2.4113]
[1721255645754,0.91449703,3408.4,3408.0,2.4113]
[1721255645755,0.60966469,3408.2,3408.0,2.4113]
[1721255646073,0.60966469,3408.4,3408.0,2.945881]
[1721255646381,0.60966469,3408.4,3408.3,5.20961]
[1721255646538,7.31,3408.6,3408.3,2.2756]
[1721255646733,7.31,3408.6,3408.4,2.93386]
[1721255646938,7.31,3408.6,3408.3,5.2096]
[1721255647139,7.31,3408.6,3408.5,0.2]
[1721255648641,7.91966469,3408.6,3408.5,0.2]
[1721255648860,7.31,3408.6,3408.5,0.2]
[1721255649248,11.15824703,3408.6,3408.5,0.2]
[1721255649777,14.09199703,3408.6,3408.5,0.2]
[1721255649991,21.08254258,3408.6,3408.5,0.2]
[1721255650144,21.42001851,3408.6,3408.5,0.2]
[1721255650343,21.42001851,3408.6,3408.5,0.18000001]
[1721255650644,21.41996558,3408.6,3408.5,0.18000001]
[1721255651046,21.41996558,3408.6,3408.5,0.38000001]
[1721255651446,28.10194175,3408.6,3408.5,0.38000001]
[1721255651884,26.2731329,3408.6,3408.5,0.38000001]
[1721255652353,28.10180345,3408.6,3408.5,0.38000001]
[1721255652548,28.10172083,3408.6,3408.5,0.38000001]
[1721255655357,24.35371558,3408.6,3408.5,0.38000001]
[1721255655554,24.35371558,3408.6,3408.5,0.58000001]
[1721255655796,22.08296576,3408.6,3408.5,0.58000001]
[1721255656291,21.74629258,3408.6,3408.5,0.58000001]
[1721255656486,22.08298306,3408.6,3408.5,0.58000001]
[1721255656797,18.81254258,3408.6,3408.5,0.58000001]
[1721255657356,19.14925642,3408.6,3408.5,0.58000001]
[1721255657592,18.81254258,3408.6,3408.5,0.58000001]
[1721255658303,18.31254258,3408.6,3408.5,0.58000001]
[1721255659377,15.77954258,3408.6,3408.5,0.58000001]
[1721255659980,15.77954258,3408.6,3408.5,0.78000001]
[1721255660622,18.03825184,3408.6,3408.5,0.78000001]
[1721255661298,18.03828611,3408.6,3408.5,0.78000001]
[1721255661463,13.0573963,3408.6,3408.5,0.78000001]
[1721255661990,11.22828179,3408.6,3408.5,0.78000001]
[1721255662374,13.05916098,3408.6,3408.5,0.78000001]
[1721255663108,11.22828179,3408.6,3408.5,0.78000001]
[1721255663405,13.05916098,3408.6,3408.5,0.78000001]
[1721255663914,11.22828179,3408.6,3408.5,0.78000001]
[1721255664883,9.30904925,3408.6,3408.5,0.78000001]
[1721255665207,11.22831821,3408.6,3408.5,0.78000001]
[1721255665425,15.89948243,3408.6,3408.5,0.70200001]
[1721255666223,15.9004602,3408.6,3408.5,0.70200001]
[1721255666510,16.69517719,3408.6,3408.5,0.70200001]
[1721255668111,17.47106255,3408.6,3408.5,0.70200001]
[1721255668613,17.47108209,3408.6,3408.5,0.70200001]
[1721255668912,19.99976319,3408.6,3408.5,0.70200001]
[1721255669067,17.47108209,3408.6,3408.5,0.70200001]
[1721255669267,19.99976319,3408.6,3408.5,0.70200001]
[1721255669499,17.47108209,3408.6,3408.5,0.70200001]
[1721255669698,19.99976319,3408.6,3408.5,0.70200001]
[1721255669917,17.47108209,3408.6,3408.5,0.70200001]
[1721255670088,19.99976319,3408.6,3408.5,0.70200001]
[1721255670306,17.06601319,3408.6,3408.5,0.70200001]
[1721255670672,17.47108209,3408.6,3408.5,0.70200001]
[1721255671199,17.47106067,3408.6,3408.5,0.70200001]
[1721255671379,19.99969454,3408.6,3408.5,0.70200001]
[1721255671590,17.47106067,3408.6,3408.5,0.70200001]
[1721255673912,18.75067566,3408.6,3408.5,0.70200001]
[1721255674073,19.21078103,3408.6,3408.5,0.70200001]
[1721255674301,16.01174082,3408.6,3408.5,0.70200001]
[1721255674518,19.21080037,3408.6,3408.5,0.70200001]
[1721255675376,19.21080037,3408.6,3408.5,0.63180001]
[1721255676615,21.73940277,3408.6,3408.5,0.63180001]
[1721255676933,19.21080037,3408.6,3408.5,0.63180001]
[1721255677427,16.01174082,3408.6,3408.5,0.63180001]
[1721255677570,19.21079252,3408.6,3408.5,0.63180001]
[1721255677774,16.01174082,3408.6,3408.5,0.63180001]
[1721255678042,19.2108052,3408.6,3408.5,0.63180001]
[1721255680202,16.2770552,3408.6,3408.5,0.63180001]
[1721255680521,16.01174082,3408.6,3408.5,0.63180001]
[1721255680691,19.21075575,3408.6,3408.5,0.63180001]
[1721255681911,16.27700575,3408.6,3408.5,0.63180001]
[1721255682285,17.73375575,3408.6,3408.5,0.63180001]
[1721255683579,14.80000575,3408.6,3408.5,0.63180001]
[1721255683810,14.79999272,3408.6,3408.5,0.63180001]
[1721255684918,17.73374272,3408.6,3408.5,0.63180001]
[1721255685098,14.79999272,3408.6,3408.5,0.63180001]
[1721255685308,17.73374272,3408.6,3408.5,0.63180001]
[1721255685619,17.73374272,3408.6,3408.5,0.56862001]
[1721255686395,14.79999272,3408.6,3408.5,0.56862001]
[1721255686848,10.54499082,3408.6,3408.5,0.56862001]
[1721255687015,14.0241183,3408.6,3408.5,0.56862001]
[1721255687188,10.82515462,3408.6,3408.5,0.56862001]
[1721255687382,14.0240909,3408.6,3408.5,0.56862001]
[1721255687822,14.02409205,3408.6,3408.5,0.56862001]
[1721255690086,26.19076068,3408.6,3408.5,0.56862001]
[1721255690282,2.93461,3407.6,3407.5,2.399]
[1721255690487,12.46589817,3407.6,3406.7,2.3696]
[1721255690723,0.91737635,3406.8,3406.7,2.900115]
[1721255691142,2.19696008,3406.8,3406.7,2.900115]
[1721255692084,5.54012837,3406.8,3406.7,2.3696]
[1721255692321,5.84592049,3406.8,3406.7,2.3696]
[1721255692523,4.31695991,3406.8,3406.7,2.3696]
[1721255692694,6.23703307,3406.8,3406.7,2.3696]
[1721255693033,3.03737618,3406.8,3406.7,2.3696]
[1721255693232,4.31744405,3406.8,3406.7,2.3696]
[1721255693524,6.23751264,3406.8,3406.7,2.3696]
[1721255693727,4.31744405,3406.8,3406.7,2.3696]
[1721255694227,6.23750229,3406.8,3406.7,2.3696]
[1721255694445,6.63069803,3406.8,3405.5,2.2822]
[1721255694722,0.91665961,3405.6,3405.5,2.2822]
[1721255695036,2.80783389,3405.6,3405.5,2.2822]
[1721255695185,1.38214405,3405.6,3405.5,2.2822]
[1721255695582,4.31848405,3405.6,3405.5,2.2822]
[1721255695827,2.93643,3405.5,3404.7,2.4296]
[1721255695997,0.10207618,3405.6,3404.8,0.536678]
[1721255696199,0.61027035,3404.9,3404.7,2.4296]
[1721255696485,2.93686,3405.0,3404.7,2.4296]
[1721255696486,0.61027035,3405.0,3404.7,2.4296]
[1721255697317,0.61027035,3405.1,3404.7,2.4296]
[1721255697530,2.93694,3404.9,3404.0,2.93769]
[1721255697691,2.93694,3404.9,3404.1,0.525139]
[1721255697692,3.54721035,3404.9,3404.1,0.525139]
[1721255698541,2.93694,3404.9,3404.1,0.525139]
[1721255698827,0.61027035,3404.8,3404.1,0.525139]
[1721255699125,2.535,3404.4,3403.2,2.2722]
[1721255699349,2.93773,3404.0,3403.2,2.2722]
[1721255699895,2.93773,3404.0,3402.4,2.2722]
[1721255699896,2.93815,3403.5,3402.4,2.2722]
[1721255700100,3.14527035,3403.8,3402.4,2.2722]
[1721255700299,2.93841,3403.2,3402.5,0.9818498]
[1721255700495,3.0,3403.1,3401.9,0.1466636]
[1721255700723,3.54875035,3403.2,3401.9,0.1466636]
[1721255700922,0.61027035,3403.5,3402.5,2.93893]
[1721255701135,2.93815,3403.5,3402.0,2.4849]
[1721255701339,3.0,3403.7,3402.4,2.93902]
[1721255701490,3.0,3404.0,3402.5,0.293902]
[1721255701692,3.14527035,3404.2,3402.6,2.93889]
[1721255701693,2.93806,3403.6,3402.6,2.93889]
[1721255701893,2.93815,3403.5,3402.6,2.93889]
[1721255702403,2.93806,3403.6,3402.6,2.93889]
[1721255702604,3.0,3404.1,3402.6,2.93889]
[1721255702800,2.93816,3403.5,3402.7,0.6171812]
[1721255703188,2.93798,3403.7,3402.7,0.6171812]
[1721255703533,2.535,3404.2,3402.7,0.6171812]
[1721255703534,2.93815,3403.5,3402.7,0.6171812]
[1721255703836,2.93815,3403.5,3402.5,0.293902]
[1721255704021,2.938,3403.7,3402.5,3.232912]
[1721255704184,3.0,3403.6,3402.5,3.232912]
[1721255704389,5.93807,3403.6,3402.7,2.93883]
[1721255704722,5.93807,3403.6,3402.5,3.232912]
[1721255704723,3.0,3403.6,3402.6,2.9389]
[1721255705020,2.93814,3403.6,3402.7,2.9087892]
[1721255705250,5.938,3403.7,3402.7,2.9087892]
[1721255705533,2.93817,3403.5,3402.7,2.9087892]
[1721255705698,5.938,3403.7,3402.7,2.9087892]
[1721255705905,5.938,3403.7,3402.7,5.8476192]
[1721255706087,3.0,3403.7,3402.8,0.61415212]
[1721255706295,5.9379,3403.8,3402.8,0.61415212]
[1721255706527,3.0,3403.8,3402.8,0.61415212]
[1721255706789,2.535,3404.6,3403.1,2.93848]
[1721255706790,5.93764,3404.1,3403.1,2.93848]
[1721255707005,6.81,3404.2,3403.3,2.93831]
[1721255707242,9.74754,3404.2,3403.3,2.93831]
[1721255707891,6.81,3404.2,3403.3,2.93831]
[1721255708094,6.81,3404.2,3403.4,0.587679]
[1721255708517,3.0,3404.1,3403.4,0.587679]
[1721255708791,3.0,3404.1,3403.5,2.4441]
[1721255709424,6.81,3404.2,3403.6,2.93805]
[1721255709642,6.81,3404.2,3403.7,0.05875142]
[1721255709929,6.81,3404.2,3403.8,3.48195014]
[1721255710149,6.81,3404.6,3403.8,3.48195014]
[1721255711940,6.81,3404.6,3404.0,2.93771]
[1721255712720,6.81,3404.6,3404.1,2.2817]
[1721255713031,6.81,3404.6,3404.2,2.93754]
[1721255713331,6.81,3404.6,3403.8,0.54409014]
[1721255713628,2.93795,3403.8,3403.0,2.4154]
[1721255714306,9.74773,3404.0,3403.0,2.4154]
[1721255714629,2.93826,3403.4,3402.4,2.4542]
[1721255714809,2.93826,3403.4,3402.4,2.993547]
[1721255715008,2.93856,3403.1,3402.4,2.4542]
[1721255715398,0.02217839,3403.0,3402.4,2.4542]
[1721255715758,0.01601425,3403.0,3402.4,2.4542]
[1721255716803,2.93848,3403.2,3402.4,2.4542]
[1721255717138,2.93851,3403.1,3402.4,2.4542]
[1721255717300,2.94553629,3403.1,3402.4,2.4542]
[1721255718235,0.00702629,3403.1,3402.4,2.4542]
[1721255718615,2.93852,3403.1,3402.4,2.4542]
[1721255718815,0.00875726,3403.0,3402.4,2.4542]
[1721255719213,0.00875726,3403.0,3402.0,2.93943]
[1721255719418,0.00875726,3403.0,3401.9,2.5069636]
[1721255719419,3.00875726,3403.0,3401.9,2.5069636]
[1721255719622,0.01461118,3403.0,3401.9,2.5069636]
[1721255719824,0.01461118,3403.0,3401.9,0.1466636]
[1721255719825,2.939,3402.6,3401.9,0.1466636]
[1721255720000,3.01461118,3403.0,3401.9,0.1466636]
[1721255720001,2.93926,3402.3,3401.9,0.1466636]
[1721255720200,5.87852,3402.3,3401.9,0.1466636]
[1721255720450,0.0285741,3402.2,3401.9,0.1466636]
[1721255720640,2.93936,3402.1,3401.9,0.1466636]
[1721255720949,2.95408563,3402.0,3401.9,0.1466636]
[1721255721337,5.89352563,3402.0,3401.9,0.1466636]
[1721255721546,14.36796563,3402.0,3401.9,0.1466636]
[1721255721841,14.38859142,3402.0,3401.9,0.1466636]
[1721255722056,2.94066,3400.6,3399.6,5.21591]
[1721255722202,2.94046,3400.9,3399.8,2.94132]
[1721255722203,2.94058,3400.7,3399.8,2.94132]
[1721255722527,3.091,3401.8,3399.6,3.090162]
[1721255722528,0.07378692,3400.6,3399.9,0.05882124]
[1721255722706,0.07378692,3400.6,3399.6,5.625162]
[1721255722707,0.07378692,3400.6,3400.0,2.94117]
[1721255722902,2.94011,3401.3,3400.0,2.94117]
[1721255722903,3.0,3401.0,3400.0,2.94117]
[1721255723213,0.06864118,3400.5,3400.0,2.94117]
[1721255723415,3.0,3401.0,3400.1,0.588251]
[1721255723735,2.94031,3401.0,3400.1,3.529311]
[1721255723906,0.05895289,3400.9,3400.1,3.529311]
[1721255724347,6.81,3401.7,3400.1,0.588251]
[1721255724545,0.06068651,3400.8,3400.6,2.94064]
[1721255724845,9.74971,3401.7,3400.4,2.94075]
[1721255725008,6.81,3401.7,3400.7,2.94056]
[1721255725207,6.81,3401.7,3400.2,2.8961]
[1721255725208,6.81,3401.7,3400.9,2.94032]
[1721255726130,6.81,3401.7,3400.2,5.83704]
[1721255726131,2.93981,3401.6,3400.6,2.94064]
[1721255726463,6.81,3401.7,3400.2,2.8961]
[1721255726464,6.81,3401.7,3400.2,2.3461]
[1721255726605,6.81,3401.7,3399.8,2.9413]
[1721255726606,2.94038,3401.0,3399.8,2.9413]
[1721255726801,3.0,3401.6,3399.7,5.21203]
[1721255726802,2.94058,3400.7,3399.7,5.21203]
[1721255727010,2.94092,3400.3,3399.1,2.94194]
[1721255727307,2.9411,3400.1,3399.0,2.2706]
[1721255727633,3.0,3400.8,3399.0,2.2706]
[1721255727835,3.091,3401.0,3399.5,2.94158]
[1721255728062,2.94093,3400.3,3399.3,2.94173]
[1721255728409,2.94093,3400.3,3399.4,2.94169]
[1721255728741,2.94093,3400.3,3399.4,3.530045]
[1721255728957,2.94083,3400.4,3399.4,0.588355]
[1721255729113,2.94109,3400.1,3399.0,2.2706]
[1721255729438,2.94109,3400.1,3399.2,2.94186]
[1721255731050,3.091,3400.8,3399.0,2.2706]
[1721255731209,2.94188,3399.2,3398.5,0.1466636]
[1721255731546,3.091,3399.9,3398.5,0.1466636]
[1721255731708,2.94238,3398.6,3398.5,0.1466636]
[1721255731908,2.94222,3398.8,3398.5,0.1466636]
[1721255732150,2.94206,3399.0,3398.5,0.1466636]
[1721255732332,2.94228,3398.8,3398.5,0.1466636]
[1721255732536,3.0,3398.7,3398.5,0.1466636]
[1721255732760,5.94235,3398.7,3398.5,0.1466636]
[1721255733059,3.0,3398.7,3398.5,0.1466636]
[1721255733259,2.94188,3399.2,3398.5,0.1466636]
[1721255733260,2.9421,3399.0,3398.5,0.1466636]
[1721255733406,2.94223,3398.8,3398.5,0.1466636]
[1721255733730,5.88476,3398.6,3398.5,0.1466636]
[1721255734107,8.88476,3398.6,3398.5,0.1466636]
[1721255734309,14.91814,3398.6,3398.5,0.1466636]
[1721255734750,8.88476,3398.6,3398.5,0.1466636]
[1721255735437,5.94238,3398.6,3398.5,0.1466636]
[1721255735620,2.94222,3398.8,3398.5,0.1466636]
[1721255735826,2.94205,3399.0,3398.5,0.1466636]
[1721255736052,3.0,3398.9,3398.5,0.1466636]
[1721255736238,2.94231,3398.7,3398.5,0.1466636]
[1721255736821,5.88476,3398.6,3398.5,0.1466636]
[1721255737027,8.88476,3398.6,3398.5,0.1466636]
[1721255737224,11.97576,3398.6,3398.5,0.1466636]
[1721255737525,15.46814,3398.6,3398.5,0.1466636]
[1721255737722,15.77034085,3398.6,3398.5,0.1466636]
[1721255738849,2.94325,3397.6,3396.6,5.34281]
[1721255739017,2.94325,3397.6,3396.8,2.94388]
[1721255739214,0.08034973,3397.5,3396.8,2.94388]
[1721255739419,0.08034973,3397.5,3396.9,2.94383]
[1721255739715,3.0,3398.1,3396.9,2.94378]
[1721255739716,2.9429,3398.0,3396.9,2.94378]
[1721255740061,0.08208572,3397.4,3396.8,2.94393]
[1721255740226,2.94327,3397.6,3396.8,3.8260411]
[1721255740429,0.08198671,3397.3,3396.8,3.8260411]
[1721255740666,2.94318,3397.7,3396.8,3.8260411]
[1721255740878,2.94318,3397.7,3396.9,2.94384]
[1721255740879,0.09428558,3397.2,3396.9,2.94384]
[1721255741025,2.94318,3397.7,3396.9,2.94384]
[1721255741225,0.09785767,3397.1,3396.9,2.94384]
[1721255741439,2.94318,3397.7,3396.9,2.94384]
[1721255741656,0.09775879,3397.0,3396.9,2.94384]
[1721255741836,2.94318,3397.7,3396.9,2.94384]
[1721255742051,0.09775879,3397.0,3396.9,2.94384]
[1721255742561,2.94301,3397.9,3396.9,2.94384]
[1721255742775,0.09775879,3397.0,3396.9,6.716365]
[1721255742930,0.30220085,3398.6,3396.9,0.828665]
[1721255743134,2.371,3399.2,3397.6,5.24208]
[1721255743135,2.94249,3398.5,3397.6,5.24208]
[1721255743390,3.01191401,3398.5,3397.6,5.24208]
[1721255743538,2.94259,3398.4,3397.6,5.24208]
[1721255743963,0.07289442,3398.3,3396.9,2.3971]
[1721255744171,0.07289442,3398.3,3396.0,2.3971]
[1721255744172,2.94345,3397.4,3396.0,2.3971]
[1721255744380,2.94345,3397.4,3396.5,2.94414]
[1721255744557,3.11368533,3397.3,3396.3,2.94437]
[1721255744759,3.11368533,3397.3,3395.3,0.46144808]
[1721255744760,3.091,3396.9,3395.3,0.46144808]
[1721255745057,3.391,3397.1,3395.3,2.94524]
[1721255745058,2.94405,3396.7,3395.3,2.94524]
[1721255745243,3.0,3396.8,3395.2,0.1466636]
[1721255745244,5.48867436,3396.8,3395.2,0.1466636]
[1721255745568,2.94451,3396.2,3395.2,0.1466636]
[1721255745731,2.94451,3396.2,3395.2,0.69558896]
[1721255745938,3.0,3396.7,3395.4,2.94513]
[1721255746172,5.7549,3397.4,3396.0,2.2576]
[1721255746173,0.12440309,3396.1,3396.0,2.2576]
[1721255746469,2.94393,3396.9,3396.0,2.2576]
[1721255746667,3.0,3396.8,3396.0,2.2576]
[1721255746872,3.0,3396.8,3396.3,2.94435]
[1721255746873,0.12403182,3396.8,3396.3,2.94435]
[1721255747057,2.9432,3397.7,3396.6,2.94405]
[1721255747236,6.482,3398.4,3396.1,0.520232]
[1721255747434,2.94351,3397.3,3396.0,2.2576]
[1721255747655,2.94317,3397.7,3396.4,2.94426]
[1721255747850,0.09750108,3397.2,3396.4,2.94426]
[1721255748076,2.94352,3397.3,3396.3,2.94431]
[1721255748281,6.63642658,3398.4,3396.0,2.2576]
[1721255748282,0.12389317,3397.1,3396.0,2.2576]
[1721255748478,2.94376,3397.1,3396.2,2.94445]
[1721255748692,6.03423,3397.7,3396.2,2.94445]
[1721255748693,3.06579945,3397.0,3396.2,2.94445]
[1721255748981,0.12201945,3397.0,3396.3,2.94437]
[1721255749194,0.12201945,3397.0,3396.6,2.9441]
[1721255749353,0.30280658,3398.4,3396.7,2.94403]
[1721255749562,2.94286,3398.1,3397.2,2.94353]
[1721255750091,2.94286,3398.1,3397.3,2.9435]
[1721255750301,2.94305,3397.9,3397.1,2.2883]
[1721255750448,2.94344,3397.4,3396.3,2.9443]
[1721255750652,2.2718,3398.4,3396.8,2.94392]
[1721255750653,2.94314,3397.8,3396.8,2.94392]
[1721255750847,2.94292,3398.0,3396.9,2.94384]
[1721255750848,2.94318,3397.7,3396.9,2.94384]
[1721255751074,2.94278,3398.2,3397.3,2.94349]
[1721255751260,2.94247,3398.5,3397.5,2.94328]
[1721255751460,2.94214,3398.9,3397.6,2.94324]
[1721255751775,2.94214,3398.9,3397.2,2.2883]
[1721255751776,2.94242,3398.6,3397.7,2.94315]
[1721255752174,2.94242,3398.6,3397.2,2.2883]
[1721255752175,2.94244,3398.6,3397.2,5.23184]
[1721255752376,2.94265,3398.3,3397.4,2.94342]
[1721255752547,2.94252,3398.5,3397.5,2.94333]
[1721255752996,3.0,3398.4,3397.5,2.94333]
[1721255753199,6.81,3399.3,3397.2,2.811484]
[1721255753200,2.94197,3399.1,3397.2,2.811484]
[1721255753385,2.94187,3399.2,3398.1,2.94281]
[1721255753589,2.94187,3399.2,3398.2,5.23101]
[1721255753953,3.02898552,3399.1,3398.2,5.23101]
[1721255754288,2.94213,3398.9,3398.2,2.2883]
[1721255754491,2.94213,3398.9,3397.3,0.55]
[1721255754492,0.08947949,3398.8,3397.6,2.2883]
[1721255754702,2.94271,3398.3,3397.6,2.2883]
[1721255755052,0.0897939,3398.2,3397.6,2.2883]
[1721255755650,2.94274,3398.2,3397.6,2.2883]
[1721255755854,0.0870404,3398.1,3397.6,2.2883]
[1721255756287,2.94223,3398.8,3397.8,2.94306]
[1721255756591,2.94239,3398.6,3397.6,2.81147]
[1721255756753,3.08478767,3398.7,3397.9,2.94292]
[1721255756956,0.08458882,3398.5,3397.9,2.94292]
[1721255757291,0.0854069,3398.4,3397.9,2.94292]
[1721255757589,3.0,3398.7,3397.9,2.94292]
[1721255757758,0.08714258,3398.3,3397.9,2.94292]
[1721255757960,3.0,3398.7,3398.0,2.9429]
[1721255758158,0.09347108,3398.2,3398.1,2.9428]
[1721255758356,3.0,3399.2,3398.1,2.9428]
[1721255758693,0.0778506,3399.1,3398.1,2.9428]
[1721255758989,2.94209,3399.0,3398.1,2.9428]
[1721255759188,3.0,3398.9,3398.1,2.9428]
[1721255759394,3.0813209,3398.9,3398.1,2.9428]
[1721255759592,3.0813209,3398.9,3398.4,2.94249]
[1721255759795,0.0813209,3398.9,3398.4,2.94249]
[1721255760171,3.0,3399.2,3398.4,2.94249]
[1721255760494,2.94195,3399.1,3398.1,2.94281]
[1721255760729,2.94222,3398.8,3397.9,3.812714]
[1721255761384,0.08580122,3398.7,3397.9,3.812714]
[1721255761583,2.94241,3398.6,3397.8,2.94306]
[1721255761890,2.94241,3398.6,3397.9,2.94298]
[1721255761891,0.09238801,3398.5,3397.9,2.94298]
[1721255762109,0.09238801,3398.5,3397.7,2.94311]
[1721255762280,0.09238801,3398.5,3397.7,2.9431]
[1721255762666,0.09238801,3398.5,3397.6,5.23154]
[1721255762982,0.09238801,3398.5,3397.7,2.94313]
[1721255763500,0.09238801,3398.5,3397.8,2.94305]
[1721255763715,3.0,3398.7,3397.8,2.94305]
[1721255763880,0.08845418,3398.6,3397.8,2.94305]
[1721255764268,0.08845418,3398.6,3397.7,0.35274508]
[1721255764508,2.94292,3398.0,3397.1,2.4821]
[1721255764705,0.08845418,3398.6,3396.7,2.94402]
[1721255764706,2.94316,3397.8,3396.7,2.94402]
[1721255765018,2.94316,3397.8,3396.6,2.4821]
[1721255765019,2.94326,3397.6,3396.6,2.4821]
[1721255765174,2.94326,3397.6,3396.5,2.94418]
[1721255765380,3.10626853,3397.7,3397.0,2.94374]
[1721255765381,0.09662982,3397.5,3397.0,2.94374]
[1721255765931,5.94288,3398.1,3396.9,2.94385]
[1721255765932,0.09397146,3397.4,3396.9,2.94385]
[1721255766082,3.0,3397.9,3396.9,2.94385]
[1721255766283,0.08702672,3397.8,3397.0,2.94376]
[1721255766505,0.08702672,3397.8,3397.0,5.592636]
[1721255766701,0.08702672,3397.8,3396.5,2.3545]
[1721255766902,2.94349,3397.4,3396.5,2.3545]
[1721255767101,0.08702672,3397.8,3396.5,2.3545]
[1721255767102,0.0957079,3397.3,3396.5,2.3545]
[1721255767306,2.94338,3397.5,3396.5,5.29869]
[1721255767492,3.03647363,3397.4,3396.5,2.3545]
[1721255767886,3.03647363,3397.4,3396.1,0.6]
[1721255767887,0.09305363,3397.4,3396.1,0.6]
[1721255768138,2.94379,3397.0,3396.1,0.6]
[1721255768441,2.94434,3396.4,3396.1,0.6]
[1721255768920,0.11420824,3396.3,3396.1,0.6]
[1721255769934,2.4849,3397.6,3396.1,0.6]
[1721255769935,5.94335,3397.5,3396.2,2.94446]
[1721255770231,5.94335,3397.5,3396.1,2.8777]
[1721255770232,2.94344,3397.4,3396.1,5.82224]
[1721255770429,3.0,3397.3,3396.2,0.582224]
[1721255770782,2.94378,3397.0,3396.1,2.8777]
[1721255770980,2.94369,3397.1,3396.1,2.8777]
[1721255771190,3.0,3397.3,3396.1,2.8777]
[1721255771427,3.0,3397.2,3396.6,2.94411]
[1721255771723,2.94318,3397.7,3396.7,2.94403]
[1721255771879,6.81,3397.9,3396.9,2.94385]
[1721255772091,6.81,3397.9,3397.0,2.94376]
[1721255772330,6.81,3397.9,3397.2,2.94359]
[1721255772834,6.81,3397.9,3396.7,2.94398]
[1721255773050,2.94314,3397.8,3396.7,2.94398]
[1721255773333,2.94314,3397.8,3396.0,3.0]
[1721255773334,2.94343,3397.4,3396.3,2.94436]
[1721255773502,2.94343,3397.4,3396.2,2.94446]
[1721255773503,2.9436,3397.2,3396.2,2.94446]
[1721255773704,3.0,3397.3,3396.3,3.824118]
[1721255774211,5.94351,3397.3,3396.3,0.879758]
[1721255774421,3.0,3397.3,3396.5,2.94419]
[1721255774715,3.0,3397.3,3396.8,2.94394]
[1721255774928,6.81,3397.4,3396.8,2.94394]
[1721255775995,6.81,3397.4,3396.6,2.94406]
[1721255776189,6.81,3397.4,3396.1,3.5445]
[1721255776190,6.81,3397.4,3396.7,2.94395]
[1721255776393,6.81,3397.4,3396.7,3.238345]
[1721255776599,6.81,3397.4,3396.5,2.9442]
[1721255776891,6.81,3397.4,3396.1,0.6]
[1721255776892,1.28367475,3397.3,3396.3,2.94437]
[1721255777436,1.28367475,3397.3,3396.1,3.54455]
[1721255777437,2.94366,3397.2,3396.1,3.54455]
[1721255777733,1.28373329,3397.1,3396.1,3.54455]
[1721255777891,1.28373329,3397.1,3396.2,0.879777]
[1721255778330,2.9436,3397.2,3396.2,0.879777]
[1721255778546,1.28371753,3397.1,3396.2,0.879777]
[1721255778832,6.81,3397.4,3396.7,2.94395]
[1721255778994,6.81,3397.4,3396.9,5.41648]
[1721255779198,3.0,3397.7,3397.0,2.94373]
[1721255779549,6.81,3397.8,3397.1,2.94368]
[1721255779899,7.42027035,3398.1,3397.1,2.94368]
[1721255780097,0.61027035,3398.2,3397.4,2.94342]
[1721255780330,1.2205407,3398.5,3397.5,2.94333]
[1721255780331,0.61027035,3398.3,3397.5,2.94333]
[1721255780507,0.61027035,3398.4,3397.6,2.94324]
[1721255780710,0.61027035,3398.4,3397.5,2.94332]
[1721255780913,0.61027035,3398.4,3397.2,3.485218]
[1721255780914,0.61027035,3398.2,3397.2,0.541638]
[1721255781110,3.85797553,3398.4,3396.9,2.4727]
[1721255781111,0.61027035,3398.1,3396.9,2.4727]
[1721255781295,0.61027035,3398.1,3396.9,5.41654]
[1721255781296,0.61027035,3397.8,3396.9,5.41654]
[1721255781696,3.55368035,3397.5,3396.3,2.4727]